bitfinex-derivatives/quotes_ETHF0:USTF0_20250102
["timestamp","ask_amount","ask_price","bid_price","bid_amount"]
[1735811066176,0.4441,3445.0,3444.7,3.2078]
[1735811066485,0.4441,3445.0,3444.9,0.29067]
[1735811066782,0.73476,3445.0,3444.9,0.29067]
[1735811067179,0.29067,3444.9,3444.8,0.29067]
[1735811067780,0.29068,3444.8,3444.7,3.2078]
[1735811067979,0.72598,3444.8,3444.7,3.2078]
[1735811068577,0.72598,3444.8,3444.7,3.49849]
[1735811068777,0.72598,3444.8,3444.7,3.2078]
[1735811072979,1.63765361,3444.8,3444.7,3.2078]
[1735811078082,0.72598,3444.8,3444.7,3.2078]
[1735811078293,1.63765361,3444.8,3444.7,3.2078]
[1735811085586,0.71073929,3444.9,3444.8,0.29068]
[1735811085798,0.30502835,3444.9,3444.8,2.06925361]
[1735811086692,0.29066,3445.1,3445.0,0.29066]
[1735811086893,0.29066,3445.1,3445.0,1.20233361]
[1735811087388,0.29065,3445.2,3445.1,0.29065]
[1735811087892,0.29065,3445.1,3445.0,1.20233361]
[1735811088689,0.29065,3445.1,3445.0,0.91167361]
[1735811089289,0.29066,3445.0,3444.9,0.4514]
[1735811089990,0.74646,3445.0,3444.9,0.4514]
[1735811090591,0.74646,3445.0,3444.8,0.4416]
[1735811090592,0.29067,3444.9,3444.8,0.4416]
[1735811090793,1.20234361,3444.9,3444.8,0.4416]
[1735811091496,1.20234361,3444.9,3444.7,3.2078]
[1735811091497,0.29068,3444.8,3444.7,3.2078]
[1735811091699,0.72108,3444.8,3444.7,3.2078]
[1735811092199,0.29068,3444.8,3444.7,4.41016361]
[1735811092495,0.29068,3444.8,3444.7,4.11947361]
[1735811093094,0.29068,3444.8,3444.7,3.2078]
[1735811096598,10.5906261,3444.8,3444.7,3.2078]
[1735811096799,10.89565445,3444.8,3444.7,3.2078]
[1735811100505,10.89565445,3444.8,3444.3,0.4443]
[1735811100506,0.29071,3444.4,3444.3,0.4443]
[1735811100813,1.20238361,3444.4,3444.3,0.4443]
[1735811102698,0.29071,3444.4,3444.3,0.4443]
[1735811104900,1.20238361,3444.4,3444.3,0.4443]
[1735811110109,0.91167361,3444.4,3444.2,3.2078]
[1735811110310,0.73622,3444.3,3444.2,3.2078]
[1735811112207,0.29075,3444.0,3443.9,0.9146]
[1735811112404,1.20242361,3444.0,3443.9,0.4658]
[1735811113006,0.29075,3444.0,3443.9,0.4658]
[1735811119812,0.29075,3444.0,3443.9,1.37747361]
[1735811120611,0.29075,3444.0,3443.9,1.66823361]
[1735811120814,0.75642835,3444.5,3444.2,0.29073]
[1735811121018,0.29072,3444.4,3444.3,0.9182]
[1735811123704,0.29072,3444.3,3444.2,3.2078]
[1735811124105,0.29072,3444.3,3444.2,4.11947361]
[1735811126114,0.91167361,3444.5,3444.2,4.11947361]
[1735811127221,0.91167361,3444.5,3444.2,4.41020361]
[1735811127420,0.91167361,3444.5,3444.2,4.11947361]
[1735811128021,0.91167361,3444.5,3444.2,3.2078]
[1735811128224,0.91167361,3444.5,3444.2,3.49852]
[1735811129018,0.91167361,3444.5,3444.3,0.29072]
[1735811129924,0.91167361,3444.5,3444.2,3.2078]
[1735811130113,0.91167361,3444.5,3444.2,3.49853]
[1735811130313,0.91167361,3444.5,3444.2,3.2078]
[1735811130519,0.91167361,3444.5,3444.3,0.29072]
[1735811130914,10.0568904,3444.5,3444.3,0.29072]
[1735811131113,0.71051438,3444.4,3444.3,0.29072]
[1735811133022,7.44073117,3444.5,3444.4,0.29071]
[1735811133314,7.44073117,3444.5,3444.4,1.20238361]
[1735811133718,6.8531838,3444.6,3444.5,0.2907]
[1735811133913,6.8531838,3444.6,3444.5,0.7348]
[1735811136225,6.8531838,3444.6,3444.5,3.25867184]
[1735811136619,6.8531838,3444.7,3444.5,2.96797184]
[1735811136818,6.8531838,3444.7,3444.6,3.9446]
[1735811137825,11.1597461,3445.2,3445.1,0.29065]
[1735811143635,0.8598,3445.2,3445.1,0.29065]
[1735811145326,0.8598,3445.2,3444.6,0.4461]
[1735811145327,0.8598,3445.2,3444.8,0.29068]
[1735811145532,2.07427184,3445.1,3444.7,0.29068]
[1735811145733,2.07427184,3444.8,3444.6,3.2078]
[1735811145930,0.4453,3444.7,3444.6,3.2078]
[1735811146141,0.8656,3444.7,3444.6,3.4985]
[1735811146438,0.8656,3444.7,3444.6,3.2078]
[1735811147142,1.57224549,3444.7,3444.6,3.2078]
[1735811147735,1.57224549,3444.7,3444.6,3.4985]
[1735811148139,0.8656,3444.7,3444.6,3.4985]
[1735811149543,1.15629,3444.7,3444.6,3.4985]
[1735811150240,1.15629,3444.7,3444.6,3.2078]
[1735811150441,1.15629,3444.7,3444.6,3.4985]
[1735811150641,1.15629,3444.7,3444.6,3.2078]
[1735811151249,0.8656,3444.7,3444.6,3.2078]
[1735811151842,0.8656,3444.7,3444.6,3.4985]
[1735811154244,1.15629,3444.7,3444.6,3.4985]
[1735811154645,10.28702881,3444.7,3444.6,3.4985]
[1735811154848,10.58025775,3444.7,3444.6,3.4985]
[1735811156151,10.28956775,3444.7,3444.6,3.4985]
[1735811156352,10.58025775,3444.7,3444.6,3.4985]
[1735811156546,10.28956775,3444.7,3444.6,3.4985]
[1735811157749,10.72396775,3444.7,3444.6,3.4985]
[1735811161145,11.13778532,3444.7,3444.6,3.4985]
[1735811161555,2.00704651,3444.7,3444.6,3.4985]
[1735811161749,1.3,3444.7,3444.6,3.4985]
[1735811162549,1.59069,3444.7,3444.6,3.2078]
[1735811163056,1.3,3444.7,3444.2,3.2078]
[1735811163454,0.29071,3444.5,3444.4,0.29071]
[1735811163650,0.2907,3444.6,3444.5,0.2907]
[1735811164352,0.29071,3444.5,3444.4,0.29071]
[1735811164547,0.29072,3444.4,3444.3,0.29072]
[1735811164855,0.29072,3444.3,3444.2,3.2078]
[1735811165156,0.73222,3444.3,3444.2,3.49853]
[1735811165750,0.4415,3444.3,3444.2,3.49853]
[1735811168261,0.73222,3444.3,3444.2,3.49853]
[1735811168563,0.4415,3444.3,3444.2,3.49853]
[1735811170053,0.73222,3444.3,3444.2,3.2078]
[1735811170253,0.73222,3444.3,3444.2,3.49853]
[1735811170755,0.4415,3444.3,3444.2,3.49853]
[1735811171661,0.73472894,3444.3,3444.2,3.49853]
[1735811172157,1.02544894,3444.3,3444.2,3.49853]
[1735811172359,0.29075,3444.0,3443.9,0.29075]
[1735811172559,0.29074,3444.1,3443.7,0.425]
[1735811172760,0.46,3443.9,3443.8,0.29076]
[1735811173261,1.15803,3444.2,3444.1,0.29074]
[1735811173464,1.61803,3444.2,3444.0,0.29074]
[1735811173766,1.3273,3444.2,3444.1,0.29074]
[1735811174263,1.3273,3444.2,3443.7,0.425]
[1735811174264,3.40157184,3444.2,3443.7,0.425]
[1735811174469,0.29322894,3444.1,3443.8,0.29076]
[1735811174664,0.29076,3444.0,3443.8,0.29076]
[1735811174857,0.29322894,3444.1,3443.8,0.29076]
[1735811175059,0.29075,3444.0,3443.8,0.29076]
[1735811175565,0.58397894,3444.1,3443.9,0.29076]
[1735811176162,0.29322894,3444.1,3443.7,0.425]
[1735811176363,0.29322894,3444.1,3443.9,0.29075]
[1735811176364,0.58396894,3444.1,3443.9,0.29075]
[1735811176564,0.29075,3444.0,3443.9,0.29075]
[1735811176768,0.58396894,3444.1,3443.9,0.29075]
[1735811177268,0.29322894,3444.1,3443.7,0.425]
[1735811177566,0.29074,3444.1,3443.9,0.29075]
[1735811178765,0.29075,3444.0,3443.9,0.29075]
[1735811179163,2.03471258,3444.2,3443.9,0.29075]
[1735811179364,0.29074,3444.1,3443.9,0.29075]
[1735811180167,0.29075,3444.0,3443.9,0.29075]
[1735811181369,0.29074,3444.1,3444.0,0.29074]
[1735811183569,0.99815258,3444.1,3444.0,0.29074]
[1735811183766,0.70741258,3444.1,3443.8,3.2078]
[1735811183966,0.29075,3444.0,3443.9,0.29075]
[1735811185768,0.29076,3443.9,3443.8,3.49856]
[1735811186065,0.91240785,3443.9,3443.8,3.2078]
[1735811186372,0.91240785,3443.9,3443.8,3.49856]
[1735811187564,0.91240785,3443.9,3443.8,0.29076]
[1735811189968,1.20316785,3443.9,3443.8,0.29076]
[1735811190172,0.91240785,3443.9,3443.8,0.29076]
[1735811190667,0.99816258,3444.0,3443.9,0.29076]
[1735811191570,0.58397894,3444.0,3443.9,0.29076]
[1735811192165,0.29076,3443.9,3443.8,0.29076]
[1735811192369,1.20316785,3443.9,3443.8,0.29076]
[1735811192673,0.91240785,3443.9,3443.8,0.29076]
[1735811192874,0.58397894,3444.0,3443.8,0.29076]
[1735811193367,0.91240785,3443.9,3443.8,0.29076]
[1735811193861,1.62052894,3444.2,3444.1,0.29074]
[1735811194174,0.29322894,3444.3,3444.1,0.91240785]
[1735811194371,0.29322894,3444.3,3444.2,0.29073]
[1735811194579,6.84911011,3444.4,3444.3,0.29072]
[1735811194874,3.2078,3444.6,3444.4,0.29071]
[1735811195073,1.20648045,3444.5,3444.4,0.29071]
[1735811195764,1.20648045,3444.5,3444.1,0.29073]
[1735811195969,1.20313785,3444.3,3444.2,0.29073]
[1735811196369,0.91240785,3444.3,3444.2,0.29073]
[1735811197072,1.64752785,3444.3,3444.2,0.29073]
[1735811197975,1.64752785,3444.3,3444.1,0.29074]
[1735811198163,0.4548,3444.2,3444.1,0.29074]
[1735811201065,7.30391011,3444.2,3444.1,0.29074]
[1735811201265,8.0124256,3444.2,3444.1,0.29074]
[1735811202669,8.4415256,3444.2,3444.1,0.29074]
[1735811205472,8.02708271,3444.2,3444.1,0.29074]
[1735811206170,1.1779726,3444.2,3444.1,0.29074]
[1735811206375,0.8839,3444.2,3444.1,0.29074]
[1735811207676,0.4444,3444.3,3444.2,0.29073]
[1735811214382,0.73512,3444.3,3444.2,0.29073]
[1735811214584,0.4444,3444.3,3444.2,0.29073]
[1735811214786,0.29073,3444.2,3444.1,0.29073]
[1735811215087,1.18533,3444.2,3444.1,0.29073]
[1735811215285,1.18533,3444.2,3444.0,0.29074]
[1735811215588,0.29073,3444.1,3444.0,0.29074]
[1735811216482,0.29073,3444.1,3443.9,0.461]
[1735811216681,0.29075,3443.9,3443.8,3.2078]
[1735811216887,0.29078,3443.5,3443.4,4.50946698]
[1735811217477,2.0756702,3443.6,3443.2,3.49861]
[1735811217683,0.2908,3443.3,3443.2,3.2078]
[1735811219490,1.3076,3443.4,3443.1,0.29082]
[1735811219491,0.29081,3443.2,3443.1,0.29082]
[1735811220190,0.29081,3443.2,3443.0,0.29082]
[1735811220693,0.99911511,3443.2,3443.0,0.29082]
[1735811220885,0.29082,3443.1,3442.9,0.4394]
[1735811221085,0.29083,3443.0,3442.9,0.4394]
[1735811221281,0.72743,3443.0,3442.9,0.4394]
[1735811221685,0.7306726,3443.0,3442.9,0.4394]
[1735811221890,0.7306726,3443.0,3442.9,0.73024]
[1735811223199,0.2940726,3443.0,3442.9,0.73024]
[1735811224294,0.2940726,3443.1,3443.0,0.29083]
[1735811227500,0.2940726,3443.2,3443.1,0.29082]
[1735811227703,0.5848826,3443.2,3443.1,0.29082]
[1735811227902,0.2940726,3443.2,3443.1,0.29082]
[1735811228202,0.5848826,3443.2,3443.1,0.29082]
[1735811228700,8.21042532,3443.3,3442.9,0.4394]
[1735811228899,8.50123532,3443.3,3443.2,0.29081]
[1735811229104,8.50123532,3443.3,3443.1,0.29082]
[1735811229900,8.21042532,3443.3,3443.1,0.29082]
[1735811230303,8.50123532,3443.3,3443.1,0.29082]
[1735811230604,0.29081,3443.2,3443.1,0.29082]
[1735811230904,8.50123532,3443.3,3443.1,0.29082]
[1735811232202,8.50123532,3443.3,3443.2,0.29081]
[1735811232500,6.86099128,3443.3,3443.2,3.49861]
[1735811232803,0.4405,3443.4,3443.3,0.29081]
[1735811233300,0.29081,3443.3,3443.2,0.29081]
[1735811233506,1.20364404,3443.3,3443.2,0.29081]
[1735811233895,0.29082,3443.1,3443.0,0.29083]
[1735811234096,1.20365404,3443.1,3443.0,0.29083]
[1735811234597,1.20366404,3443.1,3442.9,0.73023]
[1735811234803,0.8798,3443.0,3442.9,0.73023]
[1735811236002,0.4405,3443.4,3442.9,1.35223404]
[1735811236208,1.77873404,3443.4,3443.3,0.2908]
[1735811236409,0.29342033,3443.5,3443.3,0.91283404]
[1735811236601,10.7536461,3443.9,3443.4,0.4228]
[1735811236799,10.7536461,3443.9,3443.8,0.29076]
[1735811237004,10.2999461,3443.9,3443.8,0.29076]
[1735811237596,0.4254,3444.2,3443.7,4.12063404]
[1735811237597,0.4254,3444.2,3444.1,0.29074]
[1735811239511,0.4629,3444.4,3444.3,0.29072]
[1735811241702,0.4629,3444.4,3444.2,0.29072]
[1735811241901,0.4629,3444.4,3444.3,0.29072]
[1735811242898,0.29073,3444.2,3444.1,3.2078]
[1735811243205,2.07551193,3444.2,3444.1,3.2078]
[1735811243404,2.07551193,3444.2,3444.1,3.49854]
[1735811245212,2.07551193,3444.2,3444.1,3.2078]
[1735811245403,2.36624193,3444.2,3444.1,3.2078]
[1735811246508,2.65942534,3444.2,3444.1,3.2078]
[1735811246709,3.10732534,3444.2,3444.1,3.2078]
[1735811247308,2.81659534,3444.2,3444.1,3.2078]
[1735811247499,2.81659534,3444.2,3444.1,3.49854]
[1735811247799,3.10732534,3444.2,3444.1,3.2078]
[1735811250613,2.81659534,3444.2,3443.6,3.2078]
[1735811250817,0.29077,3443.7,3443.6,3.2078]
[1735811251608,1.18207,3443.8,3443.6,3.49858]
[1735811251811,0.29077,3443.7,3443.6,3.2078]
[1735811252020,0.29077,3443.7,3443.6,3.49858]
[1735811252705,0.29077,3443.7,3443.6,3.2078]
[1735811252908,1.18448341,3443.8,3443.6,3.49858]
[1735811252909,1.47525341,3443.8,3443.6,3.49858]
[1735811254316,0.29077,3443.7,3443.6,3.2078]
[1735811254511,1.18448341,3443.8,3443.6,3.2078]
[1735811254512,1.47525341,3443.8,3443.6,3.49858]
[1735811256511,0.71217,3443.7,3443.6,3.49858]
[1735811260618,0.4214,3443.7,3443.6,3.49858]
[1735811260919,0.71217,3443.7,3443.6,3.49858]
[1735811261114,0.4214,3443.7,3443.6,3.49858]
[1735811262322,0.71217,3443.7,3443.6,3.49858]
[1735811263124,0.71217,3443.7,3443.6,3.2078]
[1735811263320,0.71217,3443.7,3443.6,3.49858]
[1735811263819,0.4214,3443.7,3443.6,3.49858]
[1735811265022,0.71217,3443.7,3443.6,3.49858]
[1735811265320,0.4214,3443.7,3443.6,3.49858]
[1735811265719,0.71217,3443.7,3443.6,3.49858]
[1735811265918,0.4214,3443.7,3443.6,3.49858]
[1735811266723,0.71217,3443.7,3443.6,3.49858]
[1735811266917,0.71217,3443.7,3443.6,3.2078]
[1735811267720,0.4214,3443.7,3443.6,3.49858]
[1735811268223,0.71217,3443.7,3443.6,3.2078]
[1735811268411,0.71217,3443.7,3443.6,3.49858]
[1735811268923,0.71217,3443.7,3443.6,3.2078]
[1735811269316,0.94680485,3443.7,3443.6,3.2078]
[1735811269515,0.94680485,3443.7,3443.6,3.49858]
[1735811270119,0.4214,3443.7,3443.6,3.49858]
[1735811270716,0.71217,3443.7,3443.6,3.2078]
[1735811270920,0.71217,3443.7,3443.6,3.49858]
[1735811271827,0.4214,3443.7,3443.4,3.2078]
[1735811272624,0.29078,3443.6,3443.5,0.29079]
[1735811273023,0.4214,3443.7,3443.4,3.2078]
[1735811273419,0.29079,3443.5,3443.4,3.49859]
[1735811273620,2.07551193,3443.6,3443.4,3.2078]
[1735811274124,0.29079,3443.5,3443.4,3.2078]
[1735811274325,1.20361484,3443.5,3443.4,3.4986]
[1735811274521,1.20361484,3443.5,3443.4,3.2078]
[1735811278923,0.91282484,3443.5,3442.9,0.465]
[1735811279125,1.20365484,3443.0,3442.9,0.465]
[1735811279615,0.91282484,3443.0,3442.9,0.465]
[1735811279819,1.20365484,3443.0,3442.9,0.75584]
[1735811280425,1.20365484,3443.0,3442.9,0.465]
[1735811280825,1.91179383,3443.0,3442.9,0.75584]
[1735811281124,1.49741219,3443.0,3442.9,0.75584]
[1735811281730,1.20365484,3443.0,3442.9,0.465]
[1735811281932,1.20365484,3443.0,3442.9,0.75584]
[1735811282429,2.36813618,3443.0,3442.9,0.75584]
[1735811283028,2.07730618,3443.0,3442.9,0.75584]
[1735811283228,1.38927077,3443.2,3442.9,0.465]
[1735811283530,0.70834561,3443.2,3442.9,0.465]
[1735811283825,0.29083,3443.1,3443.0,0.29083]
[1735811285028,0.29375735,3443.2,3443.1,0.29082]
[1735811285222,6.85544255,3443.4,3443.2,0.29081]
[1735811285423,6.85544255,3443.4,3443.3,4.35921]
[1735811285623,0.29078,3443.7,3443.5,0.29078]
[1735811285824,0.29078,3443.7,3443.6,0.4403]
[1735811288431,0.2908,3443.4,3443.3,3.2078]
[1735811288937,1.43513144,3443.8,3443.3,3.4986]
[1735811288938,0.2908,3443.5,3443.3,3.4986]
[1735811289432,0.2908,3443.4,3443.3,3.2078]
[1735811290731,0.2908,3443.4,3443.3,3.49861]
[1735811291036,0.2908,3443.4,3443.3,3.2078]
[1735811291435,0.99900144,3443.4,3443.3,3.49861]
[1735811292140,0.70820144,3443.4,3443.3,3.49861]
[1735811294235,0.70820144,3443.4,3443.3,3.2078]
[1735811294437,0.70820144,3443.4,3443.3,3.49861]
[1735811296232,0.29396715,3443.4,3443.3,3.49861]
[1735811296733,0.58476715,3443.4,3443.3,3.49861]
[1735811296933,0.2908,3443.4,3443.3,3.49861]
[1735811297137,0.29079,3443.5,3443.4,0.2908]
[1735811297342,0.9992892,3443.7,3443.5,0.29078]
[1735811297540,0.29078,3443.6,3443.5,0.29079]
[1735811298038,0.9992892,3443.7,3443.5,0.29079]
[1735811298240,0.7085092,3443.7,3443.3,3.2078]
[1735811298539,0.29078,3443.6,3443.5,0.29079]
[1735811298838,0.9992892,3443.7,3443.5,0.29079]
[1735811299238,0.7085092,3443.7,3443.3,3.2078]
[1735811299437,0.29078,3443.6,3443.3,3.2078]
[1735811299646,0.7085092,3443.7,3443.5,0.29079]
[1735811299943,0.9992892,3443.7,3443.5,0.29079]
[1735811300334,0.29078,3443.6,3443.4,0.29079]
[1735811300640,0.29078,3443.6,3443.3,3.2078]
[1735811300841,0.29078,3443.6,3443.5,0.29079]
[1735811302239,0.29078,3443.6,3443.4,0.73069]
[1735811303034,0.29079,3443.5,3443.4,0.4399]
[1735811303242,0.4582,3443.5,3443.2,3.2078]
[1735811303437,2.07730618,3443.3,3442.9,0.4589]
[1735811303736,0.29083,3443.0,3442.9,0.4589]
[1735811304236,1.20384827,3443.0,3442.9,0.4589]
[1735811306435,0.29083,3443.0,3442.9,0.4589]
[1735811307335,0.29084,3442.9,3442.8,3.2078]
[1735811307536,3.72935168,3442.9,3442.8,3.2078]
[1735811307734,4.02331883,3442.9,3442.8,3.2078]
[1735811309037,0.29088,3442.5,3442.3,0.4254]
[1735811309237,0.4313,3442.4,3442.3,0.71629]
[1735811309432,0.4313,3442.4,3442.3,0.4254]
[1735811309737,0.29087,3442.6,3442.4,0.29088]
[1735811309930,0.72217,3442.6,3442.4,0.29088]
[1735811310334,0.9093,3442.9,3442.8,0.29085]
[1735811311741,1.61758594,3442.9,3442.7,0.74415]
[1735811311938,1.61758594,3442.9,3442.8,0.29085]
[1735811312337,8.47617371,3442.9,3442.8,0.29085]
[1735811312739,8.47617371,3442.9,3442.7,0.74415]
[1735811313041,0.2940107,3442.8,3442.7,0.74415]
[1735811314446,0.70826424,3442.8,3442.5,3.2078]
[1735811314745,0.29087,3442.6,3442.5,3.2078]
[1735811317042,0.29086,3442.7,3442.5,3.2078]
[1735811317541,7.14944777,3442.7,3442.5,3.2078]
[1735811317736,0.2940107,3442.6,3442.5,3.2078]
[1735811318433,0.99903769,3442.8,3442.5,3.49867]
[1735811318635,0.2940107,3442.8,3442.5,3.49867]
[1735811318842,0.29086,3442.7,3442.5,3.49867]
[1735811319740,0.29086,3442.7,3442.5,3.2078]
[1735811319942,0.29086,3442.7,3442.5,3.49867]
[1735811321946,0.5848607,3442.8,3442.5,3.49867]
[1735811322433,0.2940107,3442.8,3442.6,0.29086]
[1735811322639,0.29085,3442.8,3442.6,0.29086]
[1735811322844,0.5848607,3442.8,3442.6,0.29086]
[1735811323435,0.5848607,3442.8,3442.5,3.2078]
[1735811323840,0.5848607,3442.8,3442.6,0.29086]
[1735811324040,0.29086,3442.7,3442.5,3.49867]
[1735811324441,0.4433,3442.6,3442.5,3.49867]
[1735811329446,0.73417,3442.6,3442.5,3.49867]
[1735811329648,0.73417,3442.6,3442.5,3.2078]
[1735811331653,0.73417,3442.6,3442.4,3.49868]
[1735811332549,0.73417,3442.6,3442.5,0.29087]
[1735811332755,0.4433,3442.6,3442.5,0.29087]
[1735811333053,0.73417,3442.6,3442.5,0.29087]
[1735811333251,2.81138168,3442.6,3442.4,3.49868]
[1735811333653,3.10539238,3442.6,3442.4,3.49868]
[1735811334154,2.81452238,3442.6,3442.5,0.29087]
[1735811334355,3.10539238,3442.6,3442.4,3.49868]
[1735811335346,3.10539238,3442.6,3442.5,0.29087]
[1735811335754,3.10539238,3442.6,3442.4,3.49867]
[1735811335953,3.10539238,3442.6,3442.5,0.29087]
[1735811336457,3.10539238,3442.6,3442.4,3.2078]
[1735811336755,3.10539238,3442.6,3442.4,3.49868]
[1735811336957,3.22964115,3442.6,3442.4,3.49868]
[1735811337151,0.29087,3442.5,3442.4,3.49868]
[1735811337346,0.2940107,3442.5,3442.4,3.49868]
[1735811337746,3.52051115,3442.6,3442.4,3.49868]
[1735811337953,0.2940107,3442.5,3442.4,3.49868]
[1735811338258,1.2073349,3442.5,3442.4,3.49868]
[1735811338458,0.9133242,3442.5,3442.4,3.49868]
[1735811338947,0.9133242,3442.5,3442.4,0.29088]
[1735811339152,0.9133242,3442.5,3442.4,3.49868]
[1735811340460,1.2041942,3442.5,3442.4,3.49868]
[1735811341657,0.9133242,3442.5,3442.4,3.49868]
[1735811341857,1.2041942,3442.5,3442.4,3.49868]
[1735811342060,0.9133242,3442.5,3442.4,3.49868]
[1735811342657,0.9133242,3442.5,3442.0,3.92731]
[1735811342858,0.9133242,3442.1,3442.0,3.49871]
[1735811344351,0.9133242,3442.1,3442.0,3.2078]
[1735811344352,1.2042342,3442.1,3442.0,3.2078]
[1735811344973,0.29092,3442.0,3441.9,0.29092]
[1735811345270,0.73622,3442.0,3441.9,0.29092]
[1735811346569,0.4453,3442.0,3441.9,0.29092]
[1735811346865,0.70912947,3442.2,3441.8,0.72734]
[1735811347072,0.70912947,3442.2,3442.1,0.29091]
[1735811347267,0.2940107,3442.2,3442.1,0.29091]
[1735811347570,0.708681,3442.4,3442.3,0.29089]
[1735811347769,0.2940107,3442.4,3442.3,0.29089]
[1735811348567,0.75585,3442.8,3442.7,0.29086]
[1735811349267,0.465,3442.8,3442.7,0.29086]
[1735811349469,0.75585,3442.8,3442.7,0.29086]
[1735811349674,0.465,3442.8,3442.7,0.29086]
[1735811353168,0.2940107,3442.9,3442.8,0.29085]
[1735811353769,3.24565636,3443.0,3442.8,0.29085]
[1735811354374,0.5848507,3442.9,3442.7,0.29085]
[1735811354671,8.59218604,3442.9,3442.7,0.29085]
[1735811354975,0.2940107,3442.8,3442.7,0.29085]
[1735811356177,0.2940107,3442.8,3442.4,3.2078]
[1735811356377,2.07844566,3442.6,3442.5,0.29087]
[1735811358877,2.36931566,3442.6,3442.5,0.29087]
[1735811359679,2.07844566,3442.6,3442.5,0.29087]
[1735811360973,2.37245636,3442.6,3442.5,0.29087]
[1735811361172,0.29087,3442.5,3442.4,3.49868]
[1735811361382,3.08432636,3442.6,3442.4,3.49868]
[1735811361880,3.08432636,3442.6,3442.4,0.29088]
[1735811362680,2.79345636,3442.6,3442.5,0.29087]
[1735811363076,2.79345636,3442.6,3442.2,0.4638]
[1735811363276,0.29088,3442.5,3442.3,0.29088]
[1735811363477,0.74198,3442.5,3442.3,0.29088]
[1735811363677,1.0359907,3442.5,3442.3,0.29088]
[1735811363878,0.7451107,3442.5,3442.2,0.4638]
[1735811364076,1.15973681,3442.5,3442.4,0.29088]
[1735811364277,1.45061681,3442.5,3442.3,0.29088]
[1735811364477,1.15973681,3442.5,3442.4,0.29088]
[1735811364677,1.15973681,3442.5,3442.2,0.4638]
[1735811364878,1.15973681,3442.5,3442.1,3.2078]
[1735811365080,1.15973681,3442.5,3442.1,3.4987]
[1735811365081,0.29089,3442.3,3442.1,3.4987]
[1735811365276,0.2909,3442.2,3442.1,3.2078]
[1735811365483,1.44563681,3442.2,3442.1,3.2078]
[1735811365676,0.29092,3442.0,3441.9,0.29092]
[1735811365882,0.29092,3441.9,3441.8,0.29093]
[1735811366178,0.71662,3441.9,3441.8,0.29093]
[1735811366889,2.66337636,3442.0,3441.9,0.29092]
[1735811367185,0.99954681,3442.1,3442.0,0.29092]
[1735811367380,0.29091,3442.1,3442.0,0.29092]
[1735811368280,2.02373681,3442.2,3441.7,0.4574]
[1735811368585,2.02373681,3442.2,3442.1,0.29091]
[1735811368773,0.70863681,3442.2,3442.1,0.29091]
[1735811368976,0.2940107,3442.2,3442.1,0.29091]
[1735811369289,0.2940107,3442.2,3442.1,1.17411]
[1735811370185,0.70854256,3442.2,3442.1,0.29091]
[1735811370883,0.70854256,3442.2,3441.8,0.4578]
[1735811370884,0.7257107,3442.2,3441.8,0.4578]
[1735811371184,0.4231,3442.1,3442.0,0.29091]
[1735811371383,0.29092,3442.0,3441.8,0.29093]
[1735811371587,0.29092,3442.0,3441.7,0.4574]
[1735811371588,0.29092,3442.0,3441.9,0.29092]
[1735811373285,0.8867,3442.1,3441.7,0.4574]
[1735811373480,0.29093,3441.9,3441.8,0.29093]
[1735811373881,0.29093,3441.9,3441.7,0.4574]
[1735811373882,0.29093,3441.9,3441.7,0.29093]
[1735811374081,0.29093,3441.9,3441.8,0.29093]
[1735811374388,2.37245636,3442.0,3441.6,3.2078]
[1735811374590,2.07844566,3442.0,3441.6,3.2078]
[1735811374884,0.29092,3441.9,3441.8,0.29093]
[1735811375183,2.66337636,3442.0,3441.9,0.29092]
[1735811375386,2.37245636,3442.0,3441.8,0.29093]
[1735811375588,2.36936566,3442.0,3441.8,0.29093]
[1735811375886,2.66337636,3442.0,3441.8,0.29093]
[1735811378085,0.29092,3441.9,3441.7,0.29094]
[1735811378481,0.29092,3441.9,3441.6,3.2078]
[1735811378676,0.29092,3441.9,3441.8,0.29093]
[1735811378887,2.37245636,3442.0,3441.8,0.29093]
[1735811379087,0.29092,3441.9,3441.8,0.29093]
[1735811379590,0.29092,3441.9,3441.6,3.2078]
[1735811379591,2.66337636,3442.0,3441.9,0.29092]
[1735811379883,2.66337636,3442.0,3441.6,3.2078]
[1735811380083,2.66337636,3442.0,3441.8,0.29093]
[1735811380284,2.37245636,3442.0,3441.9,0.29092]
[1735811380685,2.66337636,3442.0,3441.8,0.29093]
[1735811382080,2.66337636,3442.0,3441.7,0.29094]
[1735811382284,2.66337636,3442.0,3441.6,3.2078]
[1735811382788,2.66337636,3442.0,3441.8,0.29093]
[1735811384883,2.37245636,3442.0,3441.6,3.2078]
[1735811385184,2.37245636,3442.0,3441.9,0.29092]
[1735811385490,2.66337636,3442.0,3441.9,0.29092]
[1735811386487,0.2940107,3442.0,3441.9,0.29092]
[1735811386685,15.99428783,3442.5,3441.9,2.07844566]
[1735811386879,15.99428783,3442.5,3442.4,3.49868]
[1735811387082,10.2999461,3442.7,3442.6,0.29086]
[1735811387487,10.61243302,3442.7,3442.6,0.29086]
[1735811387784,10.2999461,3442.7,3442.6,0.29086]
[1735811388291,0.2908,3443.4,3443.3,0.2908]
[1735811388694,0.29081,3443.3,3443.1,3.2078]
[1735811388895,0.29081,3443.3,3443.2,0.29081]
[1735811389286,0.29081,3443.3,3443.1,3.2078]
[1735811389589,0.29081,3443.2,3443.1,3.2078]
[1735811390391,0.29084,3442.9,3442.7,0.29085]
[1735811390590,2.07844566,3443.0,3442.5,3.6585]
[1735811390781,0.4524,3442.8,3442.7,0.29085]
[1735811392591,2.07844566,3443.1,3443.0,0.29083]
[1735811393088,2.07844566,3443.1,3443.0,0.2908]
[1735811393794,0.9151,3443.3,3443.2,0.29079]
[1735811393988,0.31175061,3443.6,3443.4,0.29076]
[1735811394188,0.76795061,3443.6,3443.4,0.29076]
[1735811394693,1.05870061,3443.6,3443.3,0.29078]
[1735811394893,2.07844566,3443.4,3443.3,0.29078]